bitfinex/quotes_SOLUSD_20241115
["timestamp","ask_amount","ask_price","bid_price","bid_amount"]
[1731678314307,4.6665,214.29,214.19,16.3405]
[1731678315431,0.437304,214.3,214.2,23.776884]
[1731678315938,5.103704,214.3,214.2,23.776884]
[1731678317134,5.103704,214.3,214.21,16.339]
[1731678318220,5.103704,214.3,214.21,11.6707]
[1731678321323,0.437304,214.3,214.22,32.98175207]
[1731678321516,0.437304,214.3,214.24,9.20486807]
[1731678321718,0.437304,214.3,214.23,9.20486807]
[1731678321923,0.437304,214.3,214.24,9.20486807]
[1731678322530,0.437304,214.3,214.25,32.98175207]
[1731678322837,0.437304,214.3,214.29,9.20486807]
[1731678323040,0.437304,214.3,214.27,9.20486807]
[1731678323214,0.437304,214.3,214.27,23.776884]
[1731678323555,0.437304,214.3,214.28,16.3336]
[1731678324039,0.437304,214.3,214.29,52.98175207]
[1731678324842,0.437304,214.3,214.29,58.1405593]
[1731678325041,16.6537,214.33,214.29,58.1405593]
[1731678325214,16.6537,214.33,214.32,58.1405593]
[1731678325421,16.6537,214.33,214.32,48.442784]
[1731678325620,16.6537,214.33,214.32,62.8064593]
[1731678325918,0.437304,214.51,214.35,23.776884]
[1731678326121,5.099104,214.51,214.37,23.776884]
[1731678326318,5.099104,214.51,214.37,38.1405593]
[1731678326530,5.099104,214.51,214.39,23.776884]
[1731678326729,5.099104,214.51,214.41,14.3636753]
[1731678326931,0.437304,214.51,214.43,14.3636753]
[1731678327132,0.437304,214.51,214.4,14.3636753]
[1731678327324,0.437304,214.51,214.42,23.776884]
[1731678327533,0.437304,214.51,214.41,16.3234]
[1731678327716,0.437304,214.51,214.37,4.6647]
[1731678328043,0.09367462,214.5,214.37,4.6647]
[1731678328239,0.09367462,214.5,214.36,11.6621]
[1731678328646,0.29367462,214.5,214.31,16.3309]
[1731678328945,0.19367462,214.47,214.31,11.6648]
[1731678329152,0.19367462,214.47,214.31,16.3309]
[1731678329443,16.3184,214.48,214.31,16.3309]
[1731678329738,0.09367462,214.46,214.31,16.3309]
[1731678330138,0.09367462,214.46,214.31,30.6945753]
[1731678330442,0.09367462,214.46,214.31,16.3309]
[1731678330638,4.663,214.45,214.31,11.6648]
[1731678331419,4.663,214.45,214.34,23.776884]
[1731678331639,4.663,214.45,214.34,38.1405593]
[1731678331829,4.662,214.5,214.35,14.3636753]
[1731678332319,4.662,214.5,214.36,23.776884]
[1731678332725,16.417,214.5,214.3,20.0]
[1731678332945,0.09367462,214.49,214.3,23.776884]
[1731678333128,0.19367462,214.49,214.3,23.776884]
[1731678333733,0.09367462,214.47,214.32,11.6644]
[1731678333928,23.87055862,214.47,214.32,11.6644]
[1731678334333,4.6624,214.48,214.33,23.776884]
[1731678334517,4.6624,214.48,214.33,38.1405593]
[1731678334717,4.6624,214.48,214.33,23.776884]
[1731678334940,23.87055862,214.49,214.34,4.6654]
[1731678335347,23.87055862,214.49,214.34,16.3291]
[1731678336847,23.87055862,214.49,214.25,23.3366]
[1731678336848,0.1,214.44,214.25,23.3366]
[1731678337038,0.09367462,214.41,214.26,4.6672]
[1731678337247,0.09367462,214.41,214.25,11.6686]
[1731678337721,20.0,214.42,214.27,14.3636753]
[1731678337929,20.0,214.42,214.28,14.3636753]
[1731678338250,4.6633,214.44,214.25,39.6732]
[1731678338546,4.6633,214.44,214.3,14.3636753]
[1731678338744,4.6633,214.44,214.32,14.3636753]
[1731678339049,11.656,214.49,214.26,20.1]
[1731678339050,11.656,214.49,214.34,14.3636753]
[1731678339245,4.662,214.5,214.34,14.3636753]
[1731678339434,4.662,214.5,214.36,14.3636753]
[1731678339832,4.662,214.5,214.35,14.3636753]
[1731678340025,0.09367462,214.49,214.33,40.106784]
[1731678340239,0.09367462,214.49,214.33,16.3299]
[1731678340827,20.09367462,214.49,214.33,16.3299]
[1731678341025,4.6628,214.46,214.33,16.3299]
[1731678341354,4.6628,214.46,214.36,38.1405593]
[1731678341647,0.437304,214.51,214.39,14.3636753]
[1731678341829,0.437304,214.51,214.4,23.776884]
[1731678342232,0.437304,214.51,214.39,23.776884]
[1731678342432,0.437304,214.51,214.38,23.776884]
[1731678342940,0.437304,214.51,214.39,16.3252]
[1731678345828,20.0,214.43,214.32,4.6659]
[1731678346631,4.6637,214.42,214.29,11.6658]
[1731678347255,23.87055862,214.41,214.29,11.6658]
[1731678347429,0.09367462,214.39,214.24,11.6688]
[1731678347759,23.87055862,214.37,214.24,16.3363]
[1731678347935,20.0,214.36,214.24,16.3363]
[1731678348746,20.0,214.36,214.2,14.3636753]
[1731678348747,4.6652,214.35,214.2,14.3636753]
[1731678348931,4.6652,214.35,214.21,23.776884]
[1731678349350,6.6496,214.34,214.23,23.776884]
[1731678349859,6.6496,214.34,214.23,14.3636753]
[1731678350045,22.9121,214.34,214.24,23.776884]
[1731678350657,22.9121,214.34,214.25,16.336]
[1731678351951,27.5776,214.34,214.25,16.336]
[1731678352656,22.9121,214.34,214.25,30.6996753]
[1731678352852,22.9121,214.34,214.25,18.94376]
[1731678353434,27.5776,214.34,214.25,18.94376]
[1731678354053,27.5776,214.34,214.25,14.27636]
[1731678354555,27.5776,214.34,214.25,2.60776]
[1731678355139,27.5776,214.34,214.25,18.94376]
[1731678356055,22.9121,214.34,214.25,33.3074353]
[1731678356355,22.9121,214.34,214.25,18.94376]
[1731678356561,27.5776,214.34,214.25,18.94376]
[1731678357137,27.5776,214.34,214.25,14.27636]
[1731678357437,27.5776,214.34,214.25,18.94376]
[1731678357764,27.5776,214.34,214.25,2.60776]
[1731678358058,27.5776,214.34,214.25,7.27516]
[1731678358655,27.5776,214.34,214.25,2.60776]
[1731678358656,23.87055862,214.33,214.25,2.60776]
[1731678358856,15.4739,214.3,214.25,2.60776]
[1731678359055,6.4278,214.29,214.25,2.60776]
[1731678359540,20.0,214.28,214.25,2.60776]
[1731678359934,4.667,214.27,214.25,2.60776]
[1731678360136,6.4278,214.29,214.25,2.60776]
[1731678361753,15.4739,214.3,214.25,18.94376]
[1731678363358,15.9121,214.37,214.26,23.776884]
[1731678363563,15.9121,214.37,214.26,38.1405593]
[1731678363873,15.9121,214.37,214.28,23.776884]
[1731678364167,19.8275,214.42,214.3,14.3636753]
[1731678364365,19.8275,214.42,214.29,20.0]
[1731678365076,19.8275,214.42,214.3,16.3321]
[1731678366269,19.8275,214.42,214.31,23.776884]
[1731678366270,15.1638,214.42,214.31,23.776884]
[1731678366570,4.6629,214.46,214.34,23.776884]
[1731678367267,20.5604,214.47,214.34,23.776884]
[1731678367570,20.5604,214.47,214.34,38.1405593]
[1731678367947,15.8977,214.47,214.36,38.1405593]
[1731678368268,15.8977,214.47,214.37,16.3268]
[1731678369348,0.437304,214.51,214.42,14.3636753]
[1731678369556,0.437304,214.51,214.42,23.776884]
[1731678369977,0.437304,214.51,214.39,23.776884]
[1731678370144,0.437304,214.51,214.4,30.6881753]
[1731678370471,5.099104,214.51,214.4,11.6604]
[1731678370675,20.09367462,214.5,214.35,11.6631]
[1731678370854,20.0,214.46,214.35,11.6631]
[1731678371053,6.0213,214.45,214.35,11.6631]
[1731678371771,6.0213,214.45,214.35,16.3283]
[1731678371973,6.0213,214.45,214.35,11.6631]
[1731678372208,4.6633,214.44,214.3,23.3317]
[1731678372352,6.0213,214.45,214.31,23.776884]
[1731678372678,6.0213,214.45,214.32,20.0]
[1731678372860,6.0213,214.45,214.33,23.776884]
[1731678373171,10.6845,214.45,214.33,23.776884]
[1731678373768,10.6845,214.45,214.31,20.0]
[1731678373974,16.1143,214.43,214.28,16.3336]
[1731678374272,16.1143,214.43,214.28,30.6972753]
[1731678374451,20.0,214.42,214.28,30.6972753]
[1731678374656,20.0,214.42,214.28,16.3336]
[1731678374854,20.7779,214.43,214.3,14.3636753]
[1731678375066,20.7779,214.43,214.29,14.3636753]
[1731678375266,20.7779,214.43,214.29,23.776884]
[1731678375446,23.776884,214.39,214.28,11.6669]
[1731678375767,20.0,214.42,214.26,4.667]
[1731678375973,23.776884,214.39,214.26,4.667]
[1731678376183,20.0,214.4,214.26,4.667]
[1731678376359,4.6643,214.39,214.26,16.335]
[1731678377068,4.6643,214.39,214.26,30.6986753]
[1731678377786,4.6643,214.39,214.26,16.335]
[1731678378084,4.6643,214.39,214.26,30.6986753]
[1731678378456,20.0,214.4,214.26,16.335]
[1731678378661,20.0,214.4,214.26,30.6986753]
[1731678379458,20.0,214.4,214.26,16.335]
[1731678379673,4.6643,214.39,214.26,16.335]
[1731678380869,20.0,214.42,214.27,23.776884]
[1731678381179,24.6637,214.42,214.27,38.1405593]
[1731678381586,23.776884,214.41,214.26,39.6711]
[1731678381763,23.776884,214.41,214.27,14.3636753]
[1731678381958,24.6637,214.42,214.27,14.3636753]
[1731678382267,11.6583,214.44,214.26,39.6711]
[1731678382268,4.6634,214.44,214.33,14.3636753]
[1731678382468,4.6634,214.44,214.31,14.3636753]
[1731678382966,4.6634,214.44,214.32,14.3636753]
[1731678383268,4.6629,214.46,214.34,38.1405593]
[1731678383876,4.6629,214.46,214.34,23.776884]
[1731678384493,4.6629,214.46,214.33,31.9022]
[1731678384997,4.6629,214.46,214.35,16.3283]
[1731678385286,4.6629,214.46,214.35,11.6631]
[1731678385663,4.6629,214.46,214.35,16.3283]
[1731678387590,4.6629,214.46,214.35,30.6919753]
[1731678387789,4.6629,214.46,214.35,16.3283]
[1731678388973,24.6622,214.49,214.35,16.3283]
[1731678389175,4.6622,214.49,214.36,38.1405593]
[1731678389867,4.6622,214.49,214.37,14.3636753]
[1731678390374,4.6622,214.49,214.37,30.6904753]
[1731678390576,24.6622,214.49,214.37,30.6904753]
[1731678391180,24.6622,214.49,214.37,16.3268]
[1731678392187,24.6622,214.49,214.37,26.0256753]
[1731678392386,24.6622,214.49,214.37,11.662]
[1731678392793,20.0,214.47,214.37,11.662]
[1731678392993,4.6622,214.49,214.37,26.0256753]
[1731678393675,4.6622,214.49,214.38,14.3636753]
[1731678394075,5.099204,214.51,214.39,30.6888753]
[1731678394301,0.437304,214.51,214.42,14.3636753]
[1731678395002,0.437304,214.51,214.43,14.3636753]
[1731678395177,0.437304,214.51,214.42,14.3636753]
[1731678395578,0.437304,214.51,214.43,16.3223]
[1731678396175,0.437304,214.51,214.43,30.6859753]
[1731678396373,0.437304,214.51,214.43,16.3223]
[1731678396568,0.437304,214.51,214.43,11.6588]
[1731678396995,5.099004,214.51,214.43,11.6588]
[1731678397379,0.437304,214.51,214.43,11.6588]
[1731678398789,0.437304,214.51,214.43,16.3223]
[1731678399995,23.776884,214.48,214.35,4.6652]
[1731678400703,23.776884,214.48,214.35,54.0180753]
[1731678400889,28.439384,214.48,214.35,54.0180753]
[1731678401197,28.439384,214.48,214.35,39.6544]
[1731678401883,4.662,214.5,214.38,14.3636753]
[1731678402087,24.662,214.5,214.38,14.3636753]
[1731678402586,24.662,214.5,214.37,16.3268]
[1731678403198,0.09367462,214.49,214.37,11.662]
[1731678403405,20.0,214.48,214.37,16.3268]
[1731678404103,4.6628,214.46,214.37,11.662]
[1731678405596,23.776884,214.45,214.37,11.662]
[1731678405796,23.776884,214.47,214.37,11.662]
[1731678405797,4.6633,214.44,214.37,11.662]
[1731678406096,24.663,214.46,214.37,11.662]
[1731678406879,24.6626,214.48,214.37,11.662]
[1731678407391,20.3127,214.49,214.38,14.3636753]
[1731678407700,20.3127,214.49,214.37,11.662]
[1731678408396,20.3127,214.49,214.38,14.3636753]
[1731678408583,20.3127,214.49,214.39,16.3252]
[1731678408893,5.099204,214.51,214.4,14.3636753]
[1731678409402,0.437304,214.51,214.41,14.3636753]
[1731678409902,0.437304,214.51,214.39,39.6471]
[1731678409903,0.437304,214.51,214.42,14.3636753]
[1731678410089,0.437304,214.51,214.41,14.3636753]
[1731678410289,0.437304,214.51,214.42,14.3636753]
[1731678410509,0.437304,214.51,214.43,16.3223]
[1731678410806,5.099004,214.51,214.43,16.3223]
[1731678410986,0.437304,214.51,214.45,14.3636753]
[1731678411183,0.437304,214.51,214.43,46.7993753]
[1731678411386,0.437304,214.51,214.43,32.4357]
[1731678411583,0.437304,214.51,214.43,46.7993753]
[1731678411980,0.437304,214.51,214.43,32.4357]
[1731678412188,0.437304,214.51,214.44,20.5721753]
[1731678412801,0.437304,214.51,214.46,14.3636753]
[1731678412987,0.437304,214.51,214.45,30.6843753]
[1731678414090,0.437304,214.51,214.46,14.3636753]
[1731678414403,0.437304,214.51,214.45,30.6843753]
[1731678415879,0.437304,214.51,214.45,16.3207]
[1731678417001,0.437304,214.51,214.45,30.6843753]
[1731678417190,0.437304,214.51,214.45,16.3207]
[1731678419307,0.437304,214.51,214.45,30.6843753]
[1731678419682,0.437304,214.51,214.45,16.3207]
[1731678420086,0.437304,214.51,214.48,14.3636753]
[1731678420496,0.437304,214.51,214.47,14.3636753]
[1731678420696,0.437304,214.51,214.49,14.3636753]
[1731678421101,0.437304,214.51,214.47,30.6828753]
[1731678421306,0.437304,214.51,214.47,16.3192]
[1731678421614,0.437304,214.51,214.47,30.6828753]
[1731678421793,0.437304,214.51,214.47,16.3192]
[1731678423224,0.437304,214.51,214.45,4.6629]
[1731678423509,0.437304,214.51,214.49,14.3636753]
[1731678424217,0.437304,214.51,214.5,14.3636753]
[1731678425218,0.437304,214.51,214.5,19.0256753]
[1731678426591,0.437304,214.51,214.5,34.2184753]
[1731678426809,0.437304,214.51,214.5,19.8548]
[1731678427112,0.437304,214.51,214.5,34.2184753]
[1731678427312,0.437304,214.51,214.5,19.8548]
[1731678427704,0.437304,214.51,214.5,34.2184753]
[1731678428313,0.437304,214.51,214.5,57.9953593]
[1731678429215,0.437304,214.51,214.5,77.9953593]
[1731678430317,0.437304,214.51,214.5,92.4590346]
[1731678431521,0.437304,214.51,214.5,78.0953593]
[1731678433617,0.437304,214.51,214.5,92.4590346]
[1731678434416,0.437304,214.51,214.5,78.0953593]
[1731678434923,0.437304,214.51,214.5,92.4590346]
[1731678435597,0.437304,214.51,214.5,78.0953593]
[1731678437101,0.437304,214.51,214.5,92.4590346]
[1731678438209,0.437304,214.51,214.5,78.0953593]
[1731678438409,0.437304,214.51,214.5,63.631684]
[1731678438601,0.437304,214.51,214.5,54.2184753]
[1731678438795,0.437304,214.51,214.49,11.6554]
[1731678439106,0.437304,214.51,214.49,16.3176]
[1731678439527,0.437304,214.51,214.45,23.3154]
[1731678439826,0.437304,214.51,214.47,4.6626]
[1731678440401,0.437304,214.51,214.46,11.6571]
[1731678440605,0.437304,214.51,214.46,26.0207753]
[1731678441515,0.437304,214.51,214.46,11.6571]
[1731678442798,0.437304,214.51,214.46,16.3199]
[1731678445809,0.437304,214.51,214.46,26.0207753]
[1731678446002,0.437304,214.51,214.46,11.6571]
[1731678448335,0.437304,214.51,214.46,26.0207753]
[1731678448625,0.437304,214.51,214.47,14.3636753]
[1731678449208,0.437304,214.51,214.48,14.3636753]
[1731678449409,0.437304,214.51,214.47,14.3636753]
[1731678450326,0.437304,214.51,214.48,16.3184]
[1731678451329,0.437304,214.51,214.44,14.3636753]
[1731678451502,0.437304,214.51,214.45,16.3206]
[1731678451701,0.437304,214.51,214.45,30.6842753]
[1731678453325,0.437304,214.51,214.48,14.3636753]
[1731678453525,0.437304,214.51,214.47,14.3636753]
[1731678454037,0.437304,214.51,214.48,14.3636753]
[1731678454763,0.437304,214.51,214.45,16.3206]
[1731678454764,0.437304,214.51,214.49,14.3636753]
[1731678454933,0.437304,214.51,214.49,9.17837874]
[1731678455424,0.437304,214.51,214.5,4.662]
[1731678456533,0.437304,214.51,214.5,13.84037874]
[1731678461623,0.437304,214.51,214.5,4.662]
[1731678462930,0.437304,214.51,214.49,11.6554]
[1731678464858,0.437304,214.51,214.5,13.84037874]
[1731678465345,0.437304,214.51,214.5,4.662]
[1731678466027,0.437304,214.51,214.5,13.84037874]
[1731678466757,0.437304,214.51,214.5,19.0003417]
[1731678468050,0.437304,214.51,214.5,4.662]
[1731678468849,0.437304,214.51,214.49,16.3176]
[1731678469733,0.437304,214.51,214.49,11.6554]
[1731678470563,0.437304,214.51,214.46,7.267907]
[1731678471450,0.437304,214.51,214.46,14.262307]
[1731678471630,0.437304,214.51,214.46,18.925107]
[1731678471825,5.099204,214.51,214.46,2.605207]
[1731678472128,0.437304,214.51,214.46,2.605207]
[1731678472531,0.437304,214.51,214.46,7.268007]
[1731678476330,0.437304,214.51,214.46,33.2634487]
[1731678476541,0.437304,214.51,214.48,14.3383417]
[1731678476730,0.437304,214.51,214.49,4.6622]
[1731678476931,0.437304,214.51,214.49,16.3177]
[1731678477353,0.437304,214.51,214.47,14.3383417]
[1731678477354,0.437304,214.51,214.47,4.6624]
[1731678477652,0.437304,214.51,214.47,19.0007417]
[1731678478440,0.437304,214.51,214.5,14.3383417]
[1731678480449,0.437304,214.51,214.5,19.0003417]
[1731678480950,0.437304,214.51,214.5,77.1155674]
[1731678481337,0.437304,214.51,214.5,62.7772257]
[1731678481755,0.437304,214.51,214.5,39.0003417]
[1731678481937,0.437304,214.51,214.5,19.0003417]
[1731678482136,0.437304,214.51,214.5,4.662]
[1731678482557,0.437304,214.51,214.46,2.605207]
[1731678482740,0.437304,214.51,214.47,14.3383417]
[1731678483060,0.437304,214.51,214.5,14.3383417]
[1731678483360,0.437304,214.51,214.46,42.239307]
[1731678483361,0.437304,214.51,214.49,14.3383417]
[1731678484136,0.437304,214.51,214.48,14.3383417]
[1731678484356,0.437304,214.51,214.49,16.3177]
[1731678485056,0.437304,214.51,214.5,14.3383417]
[1731678485554,0.437304,214.51,214.49,16.3177]
[1731678488060,0.437304,214.51,214.5,14.3383417]
[1731678488442,0.437304,214.51,214.5,12.3383417]
[1731678490852,0.437304,214.51,214.5,9.17672941]
[1731678491160,0.437304,214.51,214.49,16.3177]
[1731678491161,0.437304,214.51,214.49,25.49442941]
[1731678491554,0.437304,214.51,214.5,9.17672941]
[1731678492970,0.437304,214.51,214.49,16.3177]
[1731678493466,0.437304,214.51,214.49,25.49442941]
[1731678494166,0.437304,214.51,214.49,16.3177]
[1731678495166,0.437304,214.51,214.47,4.6626]
[1731678495372,0.437304,214.51,214.46,7.268007]
[1731678495873,0.437304,214.51,214.46,18.925107]
[1731678497255,0.437304,214.51,214.46,14.262307]
[1731678497845,5.099104,214.51,214.46,2.605207]
[1731678498547,0.437304,214.51,214.46,2.605207]
[1731678499054,5.099104,214.51,214.46,2.605207]
[1731678500153,23.776884,214.5,214.46,2.605207]
[1731678500372,23.776884,214.46,214.34,11.6636]
[1731678500953,10.6965,214.47,214.34,11.6636]
[1731678501264,23.776884,214.46,214.34,11.6636]
[1731678501453,20.7224,214.45,214.3,23.3313]
[1731678502074,23.776884,214.44,214.28,14.34995699]
[1731678502372,23.776884,214.44,214.3,14.34995699]
[1731678502755,23.776884,214.44,214.29,14.34995699]
[1731678502956,23.776884,214.44,214.3,14.34995699]
[1731678503177,16.0594,214.45,214.33,14.34995699]
[1731678503476,20.7226,214.45,214.34,16.3291]
[1731678504261,16.0594,214.45,214.34,30.67905699]
[1731678504460,16.0594,214.45,214.34,54.00645699]
[1731678504658,16.0594,214.45,214.36,14.34995699]
[1731678504857,16.0594,214.45,214.34,39.6565]
[1731678504858,16.0594,214.45,214.35,14.34995699]
[1731678505267,16.0594,214.45,214.34,54.00645699]
[1731678505577,16.0594,214.45,214.34,34.9911]
[1731678506873,16.0594,214.45,214.34,49.34105699]
[1731678507475,16.0594,214.45,214.36,14.34995699]
[1731678507676,16.0594,214.45,214.38,14.34995699]
[1731678507876,16.0594,214.45,214.39,14.34995699]
[1731678508267,16.0594,214.45,214.38,14.34995699]
[1731678508868,16.0594,214.45,214.35,34.34995699]
[1731678509070,16.0594,214.45,214.35,14.34995699]
[1731678509471,16.0594,214.45,214.34,11.6637]
[1731678510084,16.0594,214.45,214.34,16.3291]
[1731678510283,16.0594,214.45,214.34,30.67905699]
[1731678510586,16.0594,214.45,214.37,14.34995699]
[1731678510763,16.0594,214.45,214.36,14.34995699]
[1731678511187,16.0594,214.45,214.34,54.00645699]
[1731678511480,16.0594,214.45,214.34,39.6565]
[1731678511684,16.0594,214.45,214.34,54.00645699]
[1731678512082,16.0594,214.45,214.34,39.6565]
[1731678512782,23.776884,214.44,214.34,16.3291]
[1731678512985,20.2225,214.45,214.34,16.3291]
[1731678513389,23.776884,214.44,214.34,16.3291]
[1731678513885,4.6635,214.43,214.31,37.68055699]
[1731678514082,4.6635,214.43,214.31,23.3306]
[1731678514263,23.776884,214.42,214.31,23.3306]
[1731678514467,6.4784,214.41,214.31,23.3306]
[1731678514677,23.776884,214.4,214.28,16.3336]
[1731678515675,23.776884,214.38,214.28,16.3336]
[1731678515881,28.441584,214.38,214.28,16.3336]
[1731678516884,6.042,214.37,214.28,11.6669]
[1731678517675,6.042,214.37,214.28,26.01685699]
[1731678517878,6.042,214.37,214.29,14.34995699]
[1731678518088,6.042,214.37,214.3,14.34995699]
[1731678518479,6.042,214.37,214.29,14.34995699]
[1731678519074,6.042,214.37,214.3,16.3321]
[1731678520386,15.0297,214.39,214.32,14.34995699]
[1731678520905,15.0297,214.39,214.33,14.34995699]
[1731678521776,15.0297,214.39,214.31,14.34995699]
[1731678523200,15.0297,214.39,214.32,16.3307]
[1731678523693,19.6941,214.39,214.32,11.6648]
[1731678524184,23.87055862,214.38,214.28,11.6667]
[1731678525183,4.6648,214.37,214.28,11.6667]
[1731678526292,15.0297,214.39,214.29,14.34995699]
[1731678526487,15.0297,214.39,214.3,14.34995699]
[1731678527194,15.0297,214.39,214.31,16.3314]
[1731678527878,15.0297,214.39,214.33,14.34995699]
[1731678528086,6.1604,214.42,214.35,14.34995699]
[1731678528289,6.1604,214.42,214.34,14.34995699]
[1731678528494,6.1604,214.42,214.33,14.34995699]
[1731678528790,6.1604,214.42,214.34,14.34995699]
[1731678528992,6.1604,214.42,214.31,39.662]
[1731678529202,4.6639,214.41,214.31,39.662]
[1731678529996,6.1604,214.42,214.33,14.34995699]
[1731678530194,6.1604,214.42,214.31,39.662]
[1731678530195,6.1604,214.42,214.34,14.34995699]
[1731678530407,6.1604,214.42,214.35,14.34995699]
[1731678530700,6.1604,214.42,214.34,14.34995699]
[1731678531483,16.0966,214.44,214.37,14.34995699]
[1731678532580,16.0966,214.44,214.36,14.34995699]
[1731678532790,16.0966,214.44,214.35,39.6546]
[1731678532791,16.0966,214.44,214.35,30.67825699]
[1731678533002,16.0966,214.44,214.36,14.34995699]
[1731678533200,16.0966,214.44,214.39,14.34995699]
[1731678533697,6.5079,214.48,214.41,14.34995699]
[1731678533903,6.5079,214.48,214.4,16.3245]
[1731678534285,11.1703,214.48,214.4,16.3245]
[1731678534587,11.1703,214.48,214.4,11.6604]
[1731678535381,6.5079,214.48,214.41,14.34995699]
[1731678535684,6.5079,214.48,214.4,16.3245]
[1731678539203,11.1703,214.48,214.4,16.3245]
[1731678541307,6.5079,214.48,214.39,14.34995699]
[1731678541704,6.5079,214.48,214.38,14.34995699]
[1731678542089,23.776884,214.47,214.35,37.67625699]
[1731678542283,23.776884,214.47,214.33,16.3299]
[1731678542284,23.776884,214.47,214.34,34.34995699]
[1731678542483,23.776884,214.47,214.36,14.34995699]
[1731678545900,11.1704,214.48,214.4,17.3245]
[1731678546089,6.5079,214.48,214.41,14.34995699]
[1731678546589,6.5079,214.48,214.4,31.67445699]
[1731678548495,6.5079,214.48,214.4,17.3245]
[1731678549315,6.5079,214.48,214.4,31.67445699]
[1731678549901,0.437304,214.51,214.4,17.3245]
[1731678550105,0.437304,214.51,214.45,14.34995699]
[1731678550306,0.437304,214.51,214.43,14.34995699]
[1731678551020,5.099004,214.51,214.41,14.34995699]
[1731678551221,5.099004,214.51,214.4,40.6453]
[1731678551809,5.099004,214.51,214.41,14.34995699]
[1731678552027,5.099004,214.51,214.42,4.6637]
[1731678553101,5.099004,214.51,214.4,17.3245]
[1731678553102,23.87055862,214.5,214.4,17.3245]
[1731678553422,24.07055862,214.48,214.4,1.0]
[1731678553624,23.87055862,214.46,214.4,1.0]
[1731678553992,0.09367462,214.44,214.4,1.0]
[1731678554494,23.87055862,214.44,214.4,1.0]
[1731678556226,4.663,214.45,214.4,1.0]
[1731678556411,6.5491,214.47,214.41,14.34995699]
[1731678556611,6.5491,214.47,214.4,31.67445699]
[1731678556797,15.687,214.49,214.43,14.34995699]
[1731678557202,20.3492,214.49,214.4,17.3245]
[1731678558023,20.3492,214.49,214.4,31.67445699]
[1731678558318,15.687,214.49,214.41,14.34995699]
[1731678558521,15.687,214.49,214.4,31.67445699]
[1731678558899,15.687,214.49,214.4,17.3245]
[1731678559217,15.687,214.49,214.4,12.6604]
[1731678559218,0.09367462,214.48,214.4,12.6604]
[1731678559794,0.09367462,214.48,214.4,1.0]
[1731678560000,0.1,214.46,214.4,1.0]
[1731678560217,23.87055862,214.44,214.4,1.0]
[1731678560624,30.28245862,214.44,214.4,1.0]
[1731678561722,6.4119,214.44,214.4,1.0]
[1731678562524,11.0752,214.44,214.4,1.0]
[1731678562906,4.663,214.46,214.4,1.0]
[1731678564301,28.53295862,214.48,214.4,1.0]
[1731678565098,4.75607462,214.48,214.4,1.0]
[1731678567220,4.75607462,214.48,214.4,5.6639]
[1731678569221,22.1936,214.49,214.4,17.3243]
[1731678569433,26.8558,214.49,214.4,17.3243]
[1731678570503,26.8558,214.49,214.4,31.67425699]
[1731678571131,26.8558,214.49,214.4,17.3243]
[1731678572428,4.6626,214.47,214.4,12.6604]
[1731678572730,23.87055862,214.46,214.4,1.0]
[1731678573524,4.6626,214.47,214.4,1.0]
[1731678573825,4.6626,214.47,214.4,5.6641]
[1731678574428,4.75607462,214.48,214.4,5.6641]
[1731678574724,4.75607462,214.48,214.4,1.0]
[1731678575028,23.776884,214.47,214.4,1.0]
[1731678575221,4.6624,214.48,214.4,5.6641]
[1731678576129,4.6624,214.48,214.4,1.0]
[1731678576330,4.6624,214.48,214.4,5.6641]
[1731678576631,22.1936,214.49,214.41,14.34995699]
[1731678576929,26.8558,214.49,214.4,17.3245]
[1731678577122,0.09367462,214.48,214.4,17.3245]
[1731678577422,23.87055862,214.48,214.4,1.0]
[1731678578128,23.87055862,214.48,214.4,5.6641]
[1731678578428,4.6626,214.47,214.4,5.6641]